[Event "*** SCC Grand Prix: Titled Tuesday Blitz"]
[Site "Chess.com"]
[Date "2020.06.23"]
[Round "2"]
[White "pastouche06"]
[Black "Boudicca64"]
[Result "1-0"]
[WhiteElo "2496"]
[BlackElo "1794"]
[TimeControl "180+1"]
[EndTime "10:17:52 PDT"]
[Termination "pastouche06 won on time"]

1. d4 {[%clk 0:03:00.9]} 1... g6 {[%clk 0:02:56.9]} 2. c4 {[%clk 0:02:59.9]}
2... Bg7 {[%clk 0:02:56.2]} 3. e4 {[%clk 0:02:57.9]} 3... c5 {[%clk 0:02:54.3]}
4. Ne2 {[%clk 0:02:56.1]} 4... cxd4 {[%clk 0:02:51.7]} 5. Nxd4 {[%clk 0:02:57]}
5... Nc6 {[%clk 0:02:51]} 6. Be3 {[%clk 0:02:56.9]} 6... Nf6 {[%clk 0:02:49.1]}
7. Nc3 {[%clk 0:02:56.3]} 7... Ng4 {[%clk 0:02:36]} 8. Qxg4 {[%clk 0:02:55.5]}
8... Nxd4 {[%clk 0:02:34.4]} 9. Qd1 {[%clk 0:02:55.8]} 9... e5 {[%clk
0:02:31.7]} 10. Bd3 {[%clk 0:02:54.4]} 10... O-O {[%clk 0:02:29.5]} 11. O-O
{[%clk 0:02:54.3]} 11... b6 {[%clk 0:02:25.7]} 12. Rc1 {[%clk 0:02:50.5]} 12...
Bb7 {[%clk 0:02:24.3]} 13. b3 {[%clk 0:02:48.1]} 13... f5 {[%clk 0:02:22.1]} 14.
exf5 {[%clk 0:02:44.9]} 14... gxf5 {[%clk 0:02:19.5]} 15. f4 {[%clk 0:02:39.6]}
15... d5 {[%clk 0:02:10.6]} 16. cxd5 {[%clk 0:02:34]} 16... a6 {[%clk
0:01:31.5]} 17. a4 {[%clk 0:01:32]} 17... Rc8 {[%clk 0:01:26.9]} 18. Bc4 {[%clk
0:01:27.6]} 18... Kh8 {[%clk 0:01:19.9]} 19. fxe5 {[%clk 0:01:24.7]} 19... b5
{[%clk 0:00:46.6]} 20. Qxd4 {[%clk 0:01:20.1]} 20... bxc4 {[%clk 0:00:44.2]} 21.
bxc4 {[%clk 0:01:21]} 21... Qe7 {[%clk 0:00:32.3]} 22. Bf4 {[%clk 0:01:13]}
22... Rce8 {[%clk 0:00:20.6]} 23. Rfe1 {[%clk 0:01:06]} 23... Qh4 {[%clk
0:00:17.8]} 24. Rcd1 {[%clk 0:00:49.1]} 24... Re7 {[%clk 0:00:09.8]} 25. c5
{[%clk 0:00:43.2]} 25... Rfe8 {[%clk 0:00:08.2]} 26. c6 {[%clk 0:00:42.3]} 26...
Bc8 {[%clk 0:00:03.8]} 27. d6 {[%clk 0:00:35]} 1-0

[Event "*** SCC Grand Prix: Titled Tuesday Blitz"]
[Site "Chess.com"]
[Date "2020.06.23"]
[Round "2"]
[White "Shankovskyi"]
[Black "Iljushin_Alexey"]
[Result "0-1"]
[WhiteElo "2476"]
[BlackElo "2714"]
[TimeControl "180+1"]
[EndTime "10:17:53 PDT"]
[Termination "Iljushin_Alexey won on time"]

1. e4 {[%clk 0:03:00.9]} 1... c6 {[%clk 0:02:59.8]} 2. d4 {[%clk 0:03:00.4]}
2... d5 {[%clk 0:03:00.3]} 3. e5 {[%clk 0:02:51.3]} 3... Bf5 {[%clk 0:02:59.6]}
4. Nf3 {[%clk 0:02:51.6]} 4... e6 {[%clk 0:02:59.8]} 5. Be2 {[%clk 0:02:52]}
5... Nd7 {[%clk 0:02:59.3]} 6. O-O {[%clk 0:02:51.6]} 6... Bg6 {[%clk
0:02:59.8]} 7. Nbd2 {[%clk 0:02:50.9]} 7... Nh6 {[%clk 0:02:56.9]} 8. a4 {[%clk
0:02:44.9]} 8... Nf5 {[%clk 0:02:56.7]} 9. Nb3 {[%clk 0:02:45.2]} 9... h5 {[%clk
0:02:56]} 10. a5 {[%clk 0:02:39.7]} 10... a6 {[%clk 0:02:56.1]} 11. Be3 {[%clk
0:02:09.8]} 11... h4 {[%clk 0:02:55.1]} 12. h3 {[%clk 0:02:05.3]} 12... Be7
{[%clk 0:02:54.9]} 13. Qd2 {[%clk 0:01:57.3]} 13... Bh5 {[%clk 0:02:53.1]} 14.
Rfe1 {[%clk 0:01:42.2]} 14... g6 {[%clk 0:02:51.7]} 15. Bg5 {[%clk 0:01:28]}
15... Bxf3 {[%clk 0:02:48.6]} 16. Bxe7 {[%clk 0:01:26.9]} 16... Qxe7 {[%clk
0:02:47]} 17. Bxf3 {[%clk 0:01:27]} 17... Kf8 {[%clk 0:02:45.1]} 18. Ra4 {[%clk
0:01:14.3]} 18... Rc8 {[%clk 0:02:39.9]} 19. Rb4 {[%clk 0:01:03]} 19... Rc7
{[%clk 0:02:39.7]} 20. Bg4 {[%clk 0:01:03.4]} 20... Nh6 {[%clk 0:02:36.9]} 21.
Bf3 {[%clk 0:01:01.8]} 21... Kg7 {[%clk 0:02:36.1]} 22. Qe3 {[%clk 0:00:52.4]}
22... Nf5 {[%clk 0:02:31]} 23. Qd2 {[%clk 0:00:51.9]} 23... c5 {[%clk
0:02:28.7]} 24. dxc5 {[%clk 0:00:51.5]} 24... Nxc5 {[%clk 0:02:28.8]} 25. Nxc5
{[%clk 0:00:46.8]} 25... Qxc5 {[%clk 0:02:28.2]} 26. c3 {[%clk 0:00:47.1]} 26...
Qxa5 {[%clk 0:02:19.8]} 27. Qg5 {[%clk 0:00:47.2]} 27... Rd7 {[%clk 0:02:13.5]}
28. Qf6+ {[%clk 0:00:46.3]} 28... Kg8 {[%clk 0:02:12]} 29. Bg4 {[%clk
0:00:46.6]} 29... Ng7 {[%clk 0:02:06.3]} 30. Rd1 {[%clk 0:00:37]} 30... Qc7
{[%clk 0:02:04.4]} 31. b3 {[%clk 0:00:21.1]} 31... Rh7 {[%clk 0:01:58.3]} 32. c4
{[%clk 0:00:17.7]} 32... d4 {[%clk 0:01:56.2]} 33. c5 {[%clk 0:00:11.9]} 33...
Ne8 {[%clk 0:01:52.6]} 34. Qf4 {[%clk 0:00:09.7]} 34... d3 {[%clk 0:01:47.5]}
35. Rd4 {[%clk 0:00:04.8]} 35... Re7 {[%clk 0:01:36.1]} 36. b4 {[%clk
0:00:03.2]} 36... Kg7 {[%clk 0:01:34.1]} 37. R1xd3 {[%clk 0:00:03.6]} 37... Rh8
{[%clk 0:01:34.2]} 38. Rd8 {[%clk 0:00:02.9]} 38... Rf8 {[%clk 0:01:32.4]} 39.
Ra8 {[%clk 0:00:02.9]} 39... a5 {[%clk 0:01:29.9]} 40. Rdd8 {[%clk 0:00:02.6]}
40... axb4 {[%clk 0:01:29.4]} 41. Qxb4 {[%clk 0:00:01.4]} 41... Qxe5 {[%clk
0:01:29.4]} 0-1

[Event "*** SCC Grand Prix: Titled Tuesday Blitz"]
[Site "Chess.com"]
[Date "2020.06.23"]
[Round "2"]
[White "kintoho"]
[Black "HouseOfDurin"]
[Result "1-0"]
[WhiteElo "2366"]
[BlackElo "1911"]
[TimeControl "180+1"]
[EndTime "10:17:56 PDT"]
[Termination "kintoho won by checkmate"]

1. e4 {[%clk 0:02:57.8]} 1... c5 {[%clk 0:03:00.1]} 2. c3 {[%clk 0:02:57.3]}
2... d5 {[%clk 0:02:58.7]} 3. exd5 {[%clk 0:02:57.5]} 3... Qxd5 {[%clk
0:02:59.6]} 4. d4 {[%clk 0:02:57.7]} 4... Nc6 {[%clk 0:03:00.2]} 5. Nf3 {[%clk
0:02:57.9]} 5... Bf5 {[%clk 0:03:00.8]} 6. Be3 {[%clk 0:02:56.8]} 6... cxd4
{[%clk 0:03:00.1]} 7. cxd4 {[%clk 0:02:57]} 7... e6 {[%clk 0:02:59.1]} 8. Nc3
{[%clk 0:02:56.2]} 8... Qa5 {[%clk 0:02:58.3]} 9. Bb5 {[%clk 0:02:50.2]} 9...
Bb4 {[%clk 0:02:47.3]} 10. O-O {[%clk 0:02:50]} 10... Ne7 {[%clk 0:02:22.3]} 11.
Bxc6+ {[%clk 0:01:15.4]} 11... Nxc6 {[%clk 0:02:23.2]} 12. d5 {[%clk 0:01:15.1]}
12... Bxc3 {[%clk 0:02:21.9]} 13. dxc6 {[%clk 0:00:57.1]} 13... Bxb2 {[%clk
0:01:59.3]} 14. cxb7 {[%clk 0:00:55.6]} 14... Rb8 {[%clk 0:01:50.6]} 15. Qd6
{[%clk 0:00:55.4]} 15... Qd8 {[%clk 0:01:45.6]} 16. Qc6+ {[%clk 0:00:44.3]}
16... Qd7 {[%clk 0:01:44.9]} 17. Qxd7+ {[%clk 0:00:41.2]} 17... Kxd7 {[%clk
0:01:45.8]} 18. Rad1+ {[%clk 0:00:40.5]} 18... Ke7 {[%clk 0:01:39.9]} 19. Bc5+
{[%clk 0:00:37.3]} 19... Kf6 {[%clk 0:01:39.7]} 20. Rd7 {[%clk 0:00:33.4]} 20...
Be4 {[%clk 0:01:39.2]} 21. Be7+ {[%clk 0:00:31.2]} 21... Kf5 {[%clk 0:01:30.3]}
22. Nh4+ {[%clk 0:00:23.1]} 22... Ke5 {[%clk 0:01:30.3]} 23. Re1 {[%clk
0:00:20.5]} 23... Bd4 {[%clk 0:01:15]} 24. Bd6+ {[%clk 0:00:19.8]} 24... Kd5
{[%clk 0:01:05.3]} 25. Bxb8+ {[%clk 0:00:18.7]} 25... Kc6 {[%clk 0:01:03.6]} 26.
Rc7+ {[%clk 0:00:19]} 26... Kb6 {[%clk 0:01:03.1]} 27. Rxe4 {[%clk 0:00:18]}
27... Bxf2+ {[%clk 0:01:00.9]} 28. Kxf2 {[%clk 0:00:16.5]} 28... Rxb8 {[%clk
0:01:01.8]} 29. Rxf7 {[%clk 0:00:16.7]} 29... Rxb7 {[%clk 0:01:01.6]} 30. Rxe6+
{[%clk 0:00:16.9]} 30... Kc5 {[%clk 0:01:00.4]} 31. Rxb7 {[%clk 0:00:17.4]}
31... Kd5 {[%clk 0:01:01.3]} 32. Rxa7 {[%clk 0:00:17.8]} 32... g5 {[%clk
0:01:02.2]} 33. Rxh7 {[%clk 0:00:17.7]} 33... gxh4 {[%clk 0:01:02]} 34. Rxh4
{[%clk 0:00:18.1]} 34... Kxe6 {[%clk 0:01:02.9]} 35. Ke3 {[%clk 0:00:17]} 35...
Kf5 {[%clk 0:01:03.8]} 36. Rh3 {[%clk 0:00:15.4]} 36... Kg5 {[%clk 0:01:04.7]}
37. Ke4 {[%clk 0:00:15.3]} 37... Kg4 {[%clk 0:01:05.6]} 38. Rg3+ {[%clk
0:00:15]} 38... Kh5 {[%clk 0:01:05.6]} 39. Kf5 {[%clk 0:00:15.3]} 39... Kh6
{[%clk 0:01:06.5]} 40. Rg5 {[%clk 0:00:14.4]} 40... Kh7 {[%clk 0:01:07.4]} 41.
Kf6 {[%clk 0:00:14.8]} 41... Kh6 {[%clk 0:01:07.6]} 42. g4 {[%clk 0:00:15]}
42... Kh7 {[%clk 0:01:07.5]} 43. Rh5+ {[%clk 0:00:15.2]} 43... Kg8 {[%clk
0:01:07.7]} 44. Rh6 {[%clk 0:00:15.7]} 44... Kf8 {[%clk 0:01:07.6]} 45. Rh8#
{[%clk 0:00:16.3]} 1-0

[Event "*** SCC Grand Prix: Titled Tuesday Blitz"]
[Site "Chess.com"]
[Date "2020.06.23"]
[Round "2"]
[White "Gajuchess"]
[Black "PlayChessSimple"]
[Result "0-1"]
[WhiteElo "2761"]
[BlackElo "2529"]
[TimeControl "180+1"]
[EndTime "10:17:59 PDT"]
[Termination "PlayChessSimple won by resignation"]

1. Nf3 {[%clk 0:03:00.9]} 1... f5 {[%clk 0:02:59.2]} 2. c4 {[%clk 0:03:01.5]}
2... Nf6 {[%clk 0:02:57]} 3. Nc3 {[%clk 0:03:01.1]} 3... g6 {[%clk 0:02:54.5]}
4. d4 {[%clk 0:03:01.1]} 4... Bg7 {[%clk 0:02:54.4]} 5. g3 {[%clk 0:03:00.6]}
5... O-O {[%clk 0:02:54.2]} 6. Bg2 {[%clk 0:03:01.5]} 6... e6 {[%clk 0:02:54.6]}
7. O-O {[%clk 0:03:02.4]} 7... d6 {[%clk 0:02:55.2]} 8. Qc2 {[%clk 0:02:59.4]}
8... Nc6 {[%clk 0:02:54.7]} 9. Rd1 {[%clk 0:02:56.8]} 9... Qe8 {[%clk
0:02:54.2]} 10. d5 {[%clk 0:02:54.2]} 10... Nb4 {[%clk 0:02:51.6]} 11. Qb3
{[%clk 0:02:53.2]} 11... Na6 {[%clk 0:02:51.3]} 12. Be3 {[%clk 0:02:53.3]} 12...
e5 {[%clk 0:02:44.5]} 13. c5 {[%clk 0:02:53.5]} 13... Ng4 {[%clk 0:02:37.6]} 14.
cxd6 {[%clk 0:02:39.3]} 14... cxd6 {[%clk 0:02:33.4]} 15. Bd2 {[%clk 0:02:29.5]}
15... Nc5 {[%clk 0:02:31.6]} 16. Qa3 {[%clk 0:02:28.8]} 16... e4 {[%clk
0:02:29.6]} 17. Re1 {[%clk 0:02:19.7]} 17... e3 {[%clk 0:02:03.4]} 18. fxe3
{[%clk 0:02:16.4]} 18... Nxe3 {[%clk 0:02:01.7]} 19. Nb5 {[%clk 0:01:54.5]}
19... Nc2 {[%clk 0:01:36.5]} 20. Nxd6 {[%clk 0:01:54.1]} 20... Nxa3 {[%clk
0:01:32.3]} 21. Nxe8 {[%clk 0:01:54]} 21... Rxe8 {[%clk 0:01:32.5]} 22. bxa3
{[%clk 0:01:53.5]} 22... Bxa1 {[%clk 0:01:31]} 23. Rxa1 {[%clk 0:01:54.4]} 23...
Rxe2 {[%clk 0:01:18.4]} 24. Bb4 {[%clk 0:01:53.1]} 24... Ne4 {[%clk 0:01:14]}
25. Rc1 {[%clk 0:01:36.7]} 25... a5 {[%clk 0:01:09.4]} 26. Be7 {[%clk
0:01:25.7]} 26... Bd7 {[%clk 0:00:54.5]} 27. Rc7 {[%clk 0:01:24.4]} 27... Rc8
{[%clk 0:00:41]} 28. Rxd7 {[%clk 0:01:23.5]} 28... Rc1+ {[%clk 0:00:40.5]} 29.
Bf1 {[%clk 0:01:23.7]} 29... Rf2 {[%clk 0:00:40.9]} 30. Nd2 {[%clk 0:01:02]}
30... Rxd2 {[%clk 0:00:39.8]} 0-1

[Event "*** SCC Grand Prix: Titled Tuesday Blitz"]
[Site "Chess.com"]
[Date "2020.06.23"]
[Round "2"]
[White "Ashedu66"]
[Black "juniortay"]
[Result "0-1"]
[WhiteElo "2151"]
[BlackElo "2407"]
[TimeControl "180+1"]
[EndTime "10:17:59 PDT"]
[Termination "juniortay won on time"]

1. d4 {[%clk 0:03:00.9]} 1... d5 {[%clk 0:02:59.2]} 2. c4 {[%clk 0:03:00.2]}
2... e6 {[%clk 0:02:58.6]} 3. Nf3 {[%clk 0:03:00.1]} 3... c5 {[%clk 0:02:57.9]}
4. e3 {[%clk 0:02:59.1]} 4... Nc6 {[%clk 0:02:57.9]} 5. Nc3 {[%clk 0:02:59.3]}
5... Nf6 {[%clk 0:02:57.9]} 6. a3 {[%clk 0:02:59.3]} 6... a6 {[%clk 0:02:56.7]}
7. dxc5 {[%clk 0:02:58.4]} 7... Bxc5 {[%clk 0:02:56.1]} 8. b4 {[%clk 0:02:58.4]}
8... Ba7 {[%clk 0:02:55.7]} 9. cxd5 {[%clk 0:02:58.3]} 9... exd5 {[%clk
0:02:55.6]} 10. Be2 {[%clk 0:02:21.1]} 10... O-O {[%clk 0:02:53.9]} 11. O-O
{[%clk 0:02:20.9]} 11... d4 {[%clk 0:02:53.8]} 12. exd4 {[%clk 0:02:17.7]} 12...
Nxd4 {[%clk 0:02:53.7]} 13. Nxd4 {[%clk 0:02:13.7]} 13... Bxd4 {[%clk
0:02:52.3]} 14. Bb2 {[%clk 0:02:10.5]} 14... Be6 {[%clk 0:02:50.9]} 15. Bf3
{[%clk 0:02:07.4]} 15... Qb6 {[%clk 0:02:49.8]} 16. Na4 {[%clk 0:02:01.7]} 16...
Bxb2 {[%clk 0:02:39.3]} 17. Nxb2 {[%clk 0:02:00.8]} 17... Rfd8 {[%clk
0:02:34.6]} 18. Qe2 {[%clk 0:01:54.2]} 18... Rac8 {[%clk 0:02:34.3]} 19. Rac1
{[%clk 0:01:50.1]} 19... Qd4 {[%clk 0:02:28]} 20. Na4 {[%clk 0:01:35.2]} 20...
Bc4 {[%clk 0:02:15.8]} 21. Rxc4 {[%clk 0:01:00.9]} 21... Qxc4 {[%clk 0:02:15.4]}
22. Qxc4 {[%clk 0:00:55.4]} 22... Rxc4 {[%clk 0:02:14.3]} 23. Bxb7 {[%clk
0:00:52.3]} 23... a5 {[%clk 0:02:14.4]} 24. Nb6 {[%clk 0:00:39.9]} 24... Rc7
{[%clk 0:02:13.1]} 25. Bf3 {[%clk 0:00:35.8]} 25... axb4 {[%clk 0:02:12.9]} 26.
axb4 {[%clk 0:00:35.7]} 26... Rb8 {[%clk 0:02:12.9]} 27. Nd5 {[%clk 0:00:16.7]}
27... Nxd5 {[%clk 0:02:11.9]} 28. Bxd5 {[%clk 0:00:16.7]} 28... Rxb4 {[%clk
0:02:12.4]} 29. Bf3 {[%clk 0:00:15.7]} 29... Rb2 {[%clk 0:02:11.6]} 30. g3
{[%clk 0:00:15.3]} 30... Rcc2 {[%clk 0:02:10.5]} 31. Kg2 {[%clk 0:00:15.1]}
31... g6 {[%clk 0:02:10]} 32. h4 {[%clk 0:00:15]} 32... h5 {[%clk 0:02:09.1]}
33. Be4 {[%clk 0:00:15]} 33... Rd2 {[%clk 0:02:08.1]} 34. Bf3 {[%clk 0:00:14.7]}
34... Kg7 {[%clk 0:02:08.3]} 35. Be4 {[%clk 0:00:14.7]} 35... f5 {[%clk
0:02:08.1]} 36. Bf3 {[%clk 0:00:14.8]} 36... Kf6 {[%clk 0:02:07.8]} 37. Bc6
{[%clk 0:00:13.7]} 37... Rbc2 {[%clk 0:02:06.8]} 38. Bf3 {[%clk 0:00:12.8]}
38... Rc3 {[%clk 0:02:06]} 39. Bb7 {[%clk 0:00:10.7]} 39... f4 {[%clk
0:02:05.2]} 40. Bf3 {[%clk 0:00:07.1]} 40... Rcc2 {[%clk 0:01:49.7]} 41. gxf4
{[%clk 0:00:05.2]} 41... Kf5 {[%clk 0:01:48.9]} 42. Bb7 {[%clk 0:00:04.6]} 42...
Kxf4 {[%clk 0:01:48.3]} 43. Ba8 {[%clk 0:00:04.4]} 43... Kg4 {[%clk 0:01:47.5]}
44. Be4 {[%clk 0:00:01.9]} 44... Rb2 {[%clk 0:01:41.4]} 45. Bxg6 {[%clk
0:00:01.7]} 45... Kxh4 {[%clk 0:01:41.4]} 46. Bf5 {[%clk 0:00:01.7]} 46... Rb3
{[%clk 0:01:37.9]} 47. Be4 {[%clk 0:00:01.1]} 47... Kg5 {[%clk 0:01:36.5]} 0-1

[Event "*** SCC Grand Prix: Titled Tuesday Blitz"]
[Site "Chess.com"]
[Date "2020.06.23"]
[Round "2"]
[White "Maghalashvili"]
[Black "argentum049"]
[Result "1-0"]
[WhiteElo "2788"]
[BlackElo "2430"]
[TimeControl "180+1"]
[EndTime "10:18:03 PDT"]
[Termination "Maghalashvili won by resignation"]

1. Nf3 {[%clk 0:03:00.9]} 1... d5 {[%clk 0:02:57]} 2. g3 {[%clk 0:02:59.6]} 2...
Bg4 {[%clk 0:02:56.6]} 3. Bg2 {[%clk 0:02:59.5]} 3... Nd7 {[%clk 0:02:56.4]} 4.
d4 {[%clk 0:02:59.4]} 4... e6 {[%clk 0:02:53.5]} 5. h3 {[%clk 0:02:58.9]} 5...
Bh5 {[%clk 0:02:52.3]} 6. O-O {[%clk 0:02:58]} 6... Ngf6 {[%clk 0:02:52.1]} 7.
c4 {[%clk 0:02:58.1]} 7... c6 {[%clk 0:02:51.5]} 8. cxd5 {[%clk 0:02:58]} 8...
exd5 {[%clk 0:02:50.4]} 9. Qb3 {[%clk 0:02:58]} 9... Qb6 {[%clk 0:02:48.6]} 10.
Qe3+ {[%clk 0:02:58.1]} 10... Be7 {[%clk 0:02:37.7]} 11. Nh4 {[%clk 0:02:58.4]}
11... Bg6 {[%clk 0:02:36.3]} 12. Nc3 {[%clk 0:02:58.2]} 12... Qd8 {[%clk
0:02:26.7]} 13. Nxg6 {[%clk 0:02:57.9]} 13... hxg6 {[%clk 0:02:26.2]} 14. Qd3
{[%clk 0:02:58.8]} 14... O-O {[%clk 0:02:22.3]} 15. Rb1 {[%clk 0:02:59.7]} 15...
a5 {[%clk 0:02:21.4]} 16. a3 {[%clk 0:02:55.3]} 16... Qb6 {[%clk 0:02:14.6]} 17.
Re1 {[%clk 0:02:45.7]} 17... Rfe8 {[%clk 0:02:13.9]} 18. Bd2 {[%clk 0:02:40.6]}
18... Qb3 {[%clk 0:02:10.8]} 19. Nxd5 {[%clk 0:02:27.1]} 19... Qxd3 {[%clk
0:02:06.8]} 20. Nxe7+ {[%clk 0:02:26.4]} 20... Rxe7 {[%clk 0:02:05.8]} 21. exd3
{[%clk 0:02:27.3]} 21... Kf8 {[%clk 0:02:00.9]} 22. b4 {[%clk 0:02:25]} 22... a4
{[%clk 0:01:49.6]} 23. b5 {[%clk 0:02:24]} 23... Rxe1+ {[%clk 0:01:46.1]} 24.
Rxe1 {[%clk 0:02:08.4]} 24... cxb5 {[%clk 0:01:42.2]} 25. Bb4+ {[%clk
0:02:08.1]} 25... Kg8 {[%clk 0:01:42.3]} 26. Bxb7 {[%clk 0:02:07.5]} 26... Rb8
{[%clk 0:01:37.5]} 27. Bc6 {[%clk 0:02:03.5]} 27... Nb6 {[%clk 0:01:27.6]} 28.
Bxb5 {[%clk 0:01:57.5]} 28... Nbd5 {[%clk 0:01:27.4]} 29. Bc4 {[%clk 0:01:30.1]}
29... Nxb4 {[%clk 0:01:26.9]} 30. axb4 {[%clk 0:01:28]} 30... Rxb4 {[%clk
0:01:25.4]} 31. Re7 {[%clk 0:01:27.7]} 31... Rb1+ {[%clk 0:00:25.8]} 32. Kg2
{[%clk 0:01:26.9]} 32... Rc1 {[%clk 0:00:26.3]} 33. Ra7 {[%clk 0:01:22.9]} 33...
Ra1 {[%clk 0:00:22.1]} 34. Bxf7+ {[%clk 0:01:20.2]} 34... Kf8 {[%clk 0:00:22.6]}
35. Bc4 {[%clk 0:01:14.4]} 35... a3 {[%clk 0:00:20.6]} 36. d5 {[%clk 0:01:14.1]}
36... Ke8 {[%clk 0:00:19.3]} 37. d6 {[%clk 0:01:13.9]} 37... Rb1 {[%clk
0:00:09]} 38. Be6 {[%clk 0:01:02.5]} 38... Rb8 {[%clk 0:00:03.5]} 39. Rxa3
{[%clk 0:01:02.5]} 39... Rd8 {[%clk 0:00:03.8]} 40. Ra6 {[%clk 0:01:00.5]} 1-0

[Event "*** SCC Grand Prix: Titled Tuesday Blitz"]
[Site "Chess.com"]
[Date "2020.06.23"]
[Round "2"]
[White "Munkhzul_Turmunkh"]
[Black "mamey78"]
[Result "1-0"]
[WhiteElo "2621"]
[BlackElo "2324"]
[TimeControl "180+1"]
[EndTime "10:18:07 PDT"]
[Termination "Munkhzul_Turmunkh won by checkmate"]

1. e4 {[%clk 0:03:00.9]} 1... e5 {[%clk 0:02:54.8]} 2. Nf3 {[%clk 0:03:00.9]}
2... Nc6 {[%clk 0:02:51.7]} 3. Bb5 {[%clk 0:03:00.7]} 3... a6 {[%clk 0:02:51.1]}
4. Ba4 {[%clk 0:02:59.6]} 4... Nf6 {[%clk 0:02:51.2]} 5. O-O {[%clk 0:02:57.7]}
5... b5 {[%clk 0:02:49.7]} 6. Bb3 {[%clk 0:02:56.5]} 6... Be7 {[%clk 0:02:50]}
7. Re1 {[%clk 0:02:56.5]} 7... O-O {[%clk 0:02:49.1]} 8. a4 {[%clk 0:02:55.2]}
8... Bb7 {[%clk 0:02:47.7]} 9. d3 {[%clk 0:02:53.3]} 9... Re8 {[%clk 0:02:46.9]}
10. Nc3 {[%clk 0:02:21.9]} 10... b4 {[%clk 0:02:42.7]} 11. Nd5 {[%clk
0:02:17.6]} 11... Na5 {[%clk 0:02:41.5]} 12. Nxe7+ {[%clk 0:02:15.8]} 12... Qxe7
{[%clk 0:02:39.5]} 13. Ba2 {[%clk 0:02:14.7]} 13... d5 {[%clk 0:02:39.6]} 14.
exd5 {[%clk 0:02:09.1]} 14... Qd6 {[%clk 0:02:29.5]} 15. c4 {[%clk 0:01:48.7]}
15... c6 {[%clk 0:02:27.8]} 16. Bg5 {[%clk 0:01:27.8]} 16... cxd5 {[%clk
0:02:21.3]} 17. c5 {[%clk 0:01:15.5]} 17... Qxc5 {[%clk 0:02:07]} 18. Rxe5
{[%clk 0:01:13.8]} 18... Rxe5 {[%clk 0:01:08]} 19. Nxe5 {[%clk 0:01:14.7]} 19...
Qd6 {[%clk 0:01:07.6]} 20. d4 {[%clk 0:01:09.2]} 20... Ne4 {[%clk 0:01:06.3]}
21. Bf4 {[%clk 0:01:04.2]} 21... Qf6 {[%clk 0:01:03.1]} 22. Bg3 {[%clk
0:00:54.9]} 22... Rc8 {[%clk 0:00:58.4]} 23. Rc1 {[%clk 0:00:53.1]} 23... Rxc1
{[%clk 0:00:54.8]} 24. Qxc1 {[%clk 0:00:53.5]} 24... b3 {[%clk 0:00:54.8]} 25.
Bb1 {[%clk 0:00:52]} 25... h5 {[%clk 0:00:46.4]} 26. Qc7 {[%clk 0:00:39.9]}
26... h4 {[%clk 0:00:40]} 27. Nd7 {[%clk 0:00:29]} 27... Qc6 {[%clk 0:00:33.5]}
28. Qd8+ {[%clk 0:00:20.5]} 28... Kh7 {[%clk 0:00:31.2]} 29. Nf8+ {[%clk
0:00:19]} 29... Kg8 {[%clk 0:00:24.3]} 30. Ne6+ {[%clk 0:00:17.7]} 30... Kh7
{[%clk 0:00:23.2]} 31. Qxh4+ {[%clk 0:00:17.4]} 31... Kg6 {[%clk 0:00:22.5]} 32.
Nf8+ {[%clk 0:00:15.7]} 32... Kf5 {[%clk 0:00:20.8]} 33. Qf4# {[%clk 0:00:16.1]}
1-0

[Event "*** SCC Grand Prix: Titled Tuesday Blitz"]
[Site "Chess.com"]
[Date "2020.06.23"]
[Round "2"]
[White "TokChess"]
[Black "Quiet_Desperation"]
[Result "1-0"]
[WhiteElo "2367"]
[BlackElo "1923"]
[TimeControl "180+1"]
[EndTime "10:18:09 PDT"]
[Termination "TokChess won by resignation"]

1. Nf3 {[%clk 0:03:00.9]} 1... d5 {[%clk 0:02:56.2]} 2. d4 {[%clk 0:02:58.8]}
2... c6 {[%clk 0:02:54.9]} 3. g3 {[%clk 0:02:59]} 3... Nf6 {[%clk 0:02:55.2]} 4.
Bg2 {[%clk 0:02:59.5]} 4... Bg4 {[%clk 0:02:54.8]} 5. O-O {[%clk 0:02:59.9]}
5... e6 {[%clk 0:02:55.2]} 6. Nbd2 {[%clk 0:03:00.2]} 6... Be7 {[%clk 0:02:55]}
7. Re1 {[%clk 0:03:00.5]} 7... O-O {[%clk 0:02:54.9]} 8. e4 {[%clk 0:03:00.9]}
8... dxe4 {[%clk 0:02:54.5]} 9. Nxe4 {[%clk 0:03:01.1]} 9... Nbd7 {[%clk
0:02:53.1]} 10. c3 {[%clk 0:03:00.7]} 10... Nxe4 {[%clk 0:02:47.8]} 11. Rxe4
{[%clk 0:03:00.6]} 11... Nf6 {[%clk 0:02:48.5]} 12. Re1 {[%clk 0:03:00.5]} 12...
c5 {[%clk 0:02:48.4]} 13. Qb3 {[%clk 0:02:58.4]} 13... Qc8 {[%clk 0:02:33.2]}
14. Ne5 {[%clk 0:02:56.2]} 14... Rb8 {[%clk 0:02:32.9]} 15. Nxg4 {[%clk
0:02:54.5]} 15... Nxg4 {[%clk 0:02:33.1]} 16. Bh3 {[%clk 0:02:54.2]} 16... Nf6
{[%clk 0:02:28.9]} 17. dxc5 {[%clk 0:02:34.7]} 17... Bxc5 {[%clk 0:02:25.2]} 18.
Rxe6 {[%clk 0:02:14]} 18... Qd8 {[%clk 0:02:18.6]} 19. Re1 {[%clk 0:02:09.9]}
19... Re8 {[%clk 0:02:13.5]} 20. Bf4 {[%clk 0:01:59.2]} 20... Ne4 {[%clk
0:02:02.5]} 21. Rf1 {[%clk 0:01:45.1]} 21... Nd2 {[%clk 0:01:24.7]} 22. Bxd2
{[%clk 0:01:43.5]} 22... Qxd2 {[%clk 0:01:24]} 23. Rad1 {[%clk 0:01:43]} 23...
Qe2 {[%clk 0:01:17.4]} 24. Bg2 {[%clk 0:01:26.7]} 24... h5 {[%clk 0:01:10.7]}
25. Bd5 {[%clk 0:01:24]} 25... Re7 {[%clk 0:01:08.1]} 26. Bc4 {[%clk 0:01:15.3]}
26... Qg4 {[%clk 0:01:04.2]} 27. Rd5 {[%clk 0:00:56.9]} 27... Bb6 {[%clk
0:01:00.5]} 28. Kg2 {[%clk 0:00:40.3]} 28... h4 {[%clk 0:00:59]} 29. h3 {[%clk
0:00:29.5]} 29... Qg6 {[%clk 0:00:58.2]} 30. Bd3 {[%clk 0:00:21.4]} 30... Qh6
{[%clk 0:00:48.5]} 31. Qc4 {[%clk 0:00:15.4]} 31... hxg3 {[%clk 0:00:47.5]} 32.
fxg3 {[%clk 0:00:15.5]} 32... Qd2+ {[%clk 0:00:45.9]} 33. Kh1 {[%clk 0:00:12.6]}
33... Rbe8 {[%clk 0:00:28.1]} 34. Bh7+ {[%clk 0:00:11.8]} 1-0